[Event "Late-Titled-Tuesday-Blitz-January-30-2024"]
[Site "Chess.com"]
[Date "2024.01.30"]
[Round "8"]
[White "AradNazari"]
[Black "Cambek64"]
[Result "1-0"]
[WhiteElo "2710"]
[BlackElo "2530"]
[TimeControl "180+1"]
[EndTime "15:28:32 PST"]
[Termination "AradNazari won on time"]

1. e4 {[%clk 0:03:00.5]} 1... e6 {[%clk 0:02:57.9]} 2. d4 {[%clk 0:03:00.4]}
2... d5 {[%clk 0:02:49.6]} 3. e5 {[%clk 0:03:00.8]} 3... c5 {[%clk 0:02:41.3]}
4. c3 {[%clk 0:03:01.1]} 4... Nc6 {[%clk 0:02:41.2]} 5. Nf3 {[%clk 0:03:01.2]}
5... Bd7 {[%clk 0:02:41.8]} 6. Be2 {[%clk 0:03:00.4]} 6... Nge7 {[%clk
0:02:40.2]} 7. Na3 {[%clk 0:03:01]} 7... cxd4 {[%clk 0:02:40.4]} 8. cxd4 {[%clk
0:03:01.1]} 8... Nf5 {[%clk 0:02:40.9]} 9. Nc2 {[%clk 0:03:01.2]} 9... h5 {[%clk
0:02:41.5]} 10. Bd3 {[%clk 0:02:57.3]} 10... g6 {[%clk 0:02:41.4]} 11. a3 {[%clk
0:02:51.3]} 11... a5 {[%clk 0:02:37.5]} 12. Bg5 {[%clk 0:02:37.4]} 12... Be7
{[%clk 0:02:37.8]} 13. Bxe7 {[%clk 0:02:34.5]} 13... Ncxe7 {[%clk 0:02:35]} 14.
Qd2 {[%clk 0:02:34]} 14... Qb6 {[%clk 0:02:34.9]} 15. O-O {[%clk 0:02:29.9]}
15... Bb5 {[%clk 0:02:35]} 16. Ne3 {[%clk 0:02:17.5]} 16... Bxd3 {[%clk
0:02:33.4]} 17. Qxd3 {[%clk 0:02:18]} 17... Rc8 {[%clk 0:02:28]} 18. b4 {[%clk
0:02:11.6]} 18... axb4 {[%clk 0:02:26]} 19. Rab1 {[%clk 0:02:10.2]} 19... Kf8
{[%clk 0:02:20.6]} 20. Rxb4 {[%clk 0:02:09.7]} 20... Qc6 {[%clk 0:02:18.2]} 21.
Rfb1 {[%clk 0:02:04.1]} 21... Rc7 {[%clk 0:02:10.8]} 22. Rb6 {[%clk 0:01:45.4]}
22... Qd7 {[%clk 0:01:53.8]} 23. Ng5 {[%clk 0:01:29.2]} 23... Kg7 {[%clk
0:01:41.9]} 24. h3 {[%clk 0:01:22.5]} 24... Nxe3 {[%clk 0:01:28]} 25. Qxe3
{[%clk 0:01:20.7]} 25... Nf5 {[%clk 0:01:28.1]} 26. Qf4 {[%clk 0:01:19.5]} 26...
Qe7 {[%clk 0:01:18.9]} 27. Rd6 {[%clk 0:00:53.6]} 27... Nxd4 {[%clk 0:01:12]}
28. Kh2 {[%clk 0:00:29.3]} 28... Nf5 {[%clk 0:01:05.2]} 29. Rbb6 {[%clk
0:00:28.6]} 29... Rc4 {[%clk 0:01:04.5]} 30. Qd2 {[%clk 0:00:17.7]} 30... Nxd6
{[%clk 0:00:52.7]} 31. exd6 {[%clk 0:00:18.6]} 31... Qf6 {[%clk 0:00:51.6]} 32.
Rxb7 {[%clk 0:00:17.6]} 32... Rf8 {[%clk 0:00:48]} 33. Re7 {[%clk 0:00:18.1]}
33... Qe5+ {[%clk 0:00:38.6]} 34. f4 {[%clk 0:00:13.5]} 34... Qxd6 {[%clk
0:00:36.3]} 35. Qb2+ {[%clk 0:00:11.9]} 35... d4 {[%clk 0:00:33.6]} 36. Nxe6+
{[%clk 0:00:11.4]} 36... Kg8 {[%clk 0:00:32.8]} 37. Qb7 {[%clk 0:00:11]} 37...
Qxe6 {[%clk 0:00:16.8]} 38. Rxe6 {[%clk 0:00:11.1]} 38... fxe6 {[%clk
0:00:17.1]} 39. Qe4 {[%clk 0:00:11.8]} 39... Rf6 {[%clk 0:00:15.2]} 40. Qe5
{[%clk 0:00:11.4]} 40... Kf7 {[%clk 0:00:15.3]} 41. Qe4 {[%clk 0:00:10.1]} 41...
h4 {[%clk 0:00:11]} 42. Qb7+ {[%clk 0:00:09.9]} 42... Kg8 {[%clk 0:00:09.9]} 43.
Qb8+ {[%clk 0:00:09.4]} 43... Kg7 {[%clk 0:00:09.3]} 44. Qb7+ {[%clk 0:00:06]}
44... Kg8 {[%clk 0:00:08.9]} 45. Qe4 {[%clk 0:00:05.3]} 45... Kg7 {[%clk
0:00:07.5]} 46. a4 {[%clk 0:00:04.3]} 46... Rc5 {[%clk 0:00:04.2]} 47. Qxd4
{[%clk 0:00:03]} 47... Rf5 {[%clk 0:00:04.3]} 48. Qd7+ {[%clk 0:00:03]} 48...
Kg8 {[%clk 0:00:03]} 49. a5 {[%clk 0:00:02.7]} 49... Rxf4 {[%clk 0:00:02.5]} 50.
a6 {[%clk 0:00:03]} 1-0

[Event "Late-Titled-Tuesday-Blitz-January-30-2024"]
[Site "Chess.com"]
[Date "2024.01.30"]
[Round "8"]
[White "IngOscarArdila"]
[Black "akanga001"]
[Result "1-0"]
[WhiteElo "2318"]
[BlackElo "2000"]
[TimeControl "180+1"]
[EndTime "15:28:33 PST"]
[Termination "IngOscarArdila won by checkmate"]

1. d4 {[%clk 0:02:55.4]} 1... d5 {[%clk 0:02:58.9]} 2. c4 {[%clk 0:02:55.7]}
2... e6 {[%clk 0:02:58.7]} 3. Nc3 {[%clk 0:02:56]} 3... Nf6 {[%clk 0:02:57.8]}
4. Bg5 {[%clk 0:02:56.1]} 4... Be7 {[%clk 0:02:56.1]} 5. Nf3 {[%clk 0:02:54.9]}
5... O-O {[%clk 0:02:55.8]} 6. e3 {[%clk 0:02:53.9]} 6... c6 {[%clk 0:02:56.2]}
7. Qc2 {[%clk 0:02:53.3]} 7... Nbd7 {[%clk 0:02:53.6]} 8. cxd5 {[%clk
0:02:51.5]} 8... exd5 {[%clk 0:02:52.7]} 9. Bd3 {[%clk 0:02:51.2]} 9... Re8
{[%clk 0:02:51.5]} 10. O-O {[%clk 0:02:50.6]} 10... Nf8 {[%clk 0:02:50.7]} 11.
Ne5 {[%clk 0:02:49.9]} 11... N6d7 {[%clk 0:02:44.4]} 12. Bxe7 {[%clk 0:02:21.9]}
12... Qxe7 {[%clk 0:02:45.3]} 13. Nxd7 {[%clk 0:02:10.4]} 13... Bxd7 {[%clk
0:02:42.5]} 14. Rab1 {[%clk 0:02:10.1]} 14... g6 {[%clk 0:02:30.4]} 15. b4
{[%clk 0:02:09]} 15... Ne6 {[%clk 0:02:26.7]} 16. a4 {[%clk 0:02:03.6]} 16...
Rac8 {[%clk 0:02:18.2]} 17. Qb3 {[%clk 0:01:55.5]} 17... Ng7 {[%clk 0:02:16.7]}
18. b5 {[%clk 0:01:52.9]} 18... Bf5 {[%clk 0:02:12.6]} 19. Bxf5 {[%clk
0:01:51.1]} 19... Nxf5 {[%clk 0:02:11.7]} 20. bxc6 {[%clk 0:01:51.4]} 20... bxc6
{[%clk 0:02:10.3]} 21. Qb7 {[%clk 0:01:48.7]} 21... Rc7 {[%clk 0:02:09.7]} 22.
Qa6 {[%clk 0:01:46.6]} 22... Nd6 {[%clk 0:02:08.4]} 23. Na2 {[%clk 0:01:12.7]}
23... Nc4 {[%clk 0:02:06.6]} 24. Rfd1 {[%clk 0:01:04.6]} 24... f5 {[%clk
0:01:53.8]} 25. Nb4 {[%clk 0:01:03.2]} 25... Qd6 {[%clk 0:01:45.3]} 26. Nd3
{[%clk 0:01:01.1]} 26... g5 {[%clk 0:01:30.5]} 27. Rb7 {[%clk 0:00:45.9]} 27...
Ree7 {[%clk 0:01:25.9]} 28. Rb8+ {[%clk 0:00:39.8]} 28... Kg7 {[%clk 0:01:23.1]}
29. Rdb1 {[%clk 0:00:37.3]} 29... f4 {[%clk 0:01:13.8]} 30. exf4 {[%clk
0:00:35.1]} 30... gxf4 {[%clk 0:01:12.8]} 31. h3 {[%clk 0:00:33.7]} 31... f3
{[%clk 0:01:11.4]} 32. g3 {[%clk 0:00:28.1]} 32... Qe6 {[%clk 0:01:10.2]} 33.
Nf4 {[%clk 0:00:21.1]} 33... Qf5 {[%clk 0:01:04]} 34. Kh2 {[%clk 0:00:15.1]}
34... Nd2 {[%clk 0:00:53.3]} 35. R1b7 {[%clk 0:00:13.6]} 35... Ne4 {[%clk
0:00:51]} 36. Rxc7 {[%clk 0:00:12.7]} 36... Rxc7 {[%clk 0:00:49.8]} 37. Rb7
{[%clk 0:00:12.9]} 37... Rf7 {[%clk 0:00:21.1]} 38. Rxf7+ {[%clk 0:00:12.3]}
38... Qxf7 {[%clk 0:00:21.1]} 39. Kg1 {[%clk 0:00:12.4]} 39... Nd6 {[%clk
0:00:11.9]} 40. Qxc6 {[%clk 0:00:12.1]} 40... Qf6 {[%clk 0:00:11.5]} 41. Qxd5
{[%clk 0:00:11.9]} 41... Nf5 {[%clk 0:00:10.4]} 42. Nh5+ {[%clk 0:00:12]} 42...
Kg6 {[%clk 0:00:08.8]} 43. Nxf6 {[%clk 0:00:12.9]} 43... Kxf6 {[%clk 0:00:09.7]}
44. Qc6+ {[%clk 0:00:12.8]} 44... Kg5 {[%clk 0:00:09.3]} 45. d5 {[%clk
0:00:13.7]} 45... Nd4 {[%clk 0:00:08]} 46. Qc4 {[%clk 0:00:11.3]} 46... Ne2+
{[%clk 0:00:08.9]} 47. Kf1 {[%clk 0:00:11.3]} 47... Kf5 {[%clk 0:00:08.9]} 48.
Qd3+ {[%clk 0:00:10.7]} 48... Ke5 {[%clk 0:00:08.7]} 49. Qxf3 {[%clk 0:00:10.6]}
49... Nd4 {[%clk 0:00:08.5]} 50. Qe3+ {[%clk 0:00:10.8]} 50... Kxd5 {[%clk
0:00:08]} 51. Qxd4+ {[%clk 0:00:11.1]} 51... Kxd4 {[%clk 0:00:07.8]} 52. Ke2
{[%clk 0:00:12]} 52... Kc4 {[%clk 0:00:07.4]} 53. f4 {[%clk 0:00:12.5]} 53...
Kb4 {[%clk 0:00:08.2]} 54. f5 {[%clk 0:00:13.1]} 54... Kxa4 {[%clk 0:00:09.1]}
55. f6 {[%clk 0:00:13.7]} 55... Kb3 {[%clk 0:00:10]} 56. f7 {[%clk 0:00:14.2]}
56... a5 {[%clk 0:00:10.9]} 57. f8=Q {[%clk 0:00:14.7]} 57... a4 {[%clk
0:00:11.8]} 58. Qb8+ {[%clk 0:00:14.6]} 58... Ka2 {[%clk 0:00:11]} 59. Kd3
{[%clk 0:00:14.6]} 59... a3 {[%clk 0:00:11.9]} 60. Kc2 {[%clk 0:00:15]} 60...
Ka1 {[%clk 0:00:12.5]} 61. Qb1# {[%clk 0:00:14.6]} 1-0

[Event "Late-Titled-Tuesday-Blitz-January-30-2024"]
[Site "Chess.com"]
[Date "2024.01.30"]
[Round "8"]
[White "ahkashefi2800"]
[Black "Walter_White_Poland"]
[Result "1/2-1/2"]
[WhiteElo "2565"]
[BlackElo "2338"]
[TimeControl "180+1"]
[EndTime "15:28:39 PST"]
[Termination "Game drawn by repetition"]

1. g3 {[%clk 0:02:51.6]} 1... e5 {[%clk 0:02:55.2]} 2. Bg2 {[%clk 0:02:51]} 2...
d5 {[%clk 0:02:55.1]} 3. c3 {[%clk 0:02:50.6]} 3... Nc6 {[%clk 0:02:47.5]} 4. d4
{[%clk 0:02:50.5]} 4... f6 {[%clk 0:02:47]} 5. dxe5 {[%clk 0:02:48.2]} 5... fxe5
{[%clk 0:02:46.5]} 6. Nf3 {[%clk 0:02:38.4]} 6... Nf6 {[%clk 0:02:44.8]} 7. O-O
{[%clk 0:02:37.7]} 7... a5 {[%clk 0:02:22]} 8. b3 {[%clk 0:02:30.8]} 8... Bc5
{[%clk 0:02:19.2]} 9. Ba3 {[%clk 0:02:24.9]} 9... Bxa3 {[%clk 0:02:15]} 10. Nxa3
{[%clk 0:02:25.8]} 10... O-O {[%clk 0:02:13.8]} 11. Nb5 {[%clk 0:02:24.7]} 11...
Bf5 {[%clk 0:01:30.2]} 12. Rc1 {[%clk 0:02:20]} 12... Qd7 {[%clk 0:01:26.3]} 13.
c4 {[%clk 0:02:15.4]} 13... d4 {[%clk 0:01:22]} 14. Re1 {[%clk 0:01:46.4]} 14...
Rad8 {[%clk 0:01:17.6]} 15. a3 {[%clk 0:01:34.1]} 15... h6 {[%clk 0:01:12]} 16.
b4 {[%clk 0:01:30]} 16... axb4 {[%clk 0:01:10.2]} 17. axb4 {[%clk 0:01:30.1]}
17... e4 {[%clk 0:01:08.1]} 18. Nd2 {[%clk 0:01:21.8]} 18... Ng4 {[%clk
0:00:30.8]} 19. Bxe4 {[%clk 0:01:10.7]} 19... Nxf2 {[%clk 0:00:26.3]} 20. Bd5+
{[%clk 0:00:52.3]} 20... Kh8 {[%clk 0:00:25.3]} 21. Qb3 {[%clk 0:00:47.9]} 21...
Nh3+ {[%clk 0:00:15.5]} 22. Kg2 {[%clk 0:00:47.9]} 22... Ne7 {[%clk 0:00:13]}
23. Bf3 {[%clk 0:00:42.5]} 23... c6 {[%clk 0:00:12.4]} 24. Na3 {[%clk
0:00:37.9]} 24... Ng5 {[%clk 0:00:12.2]} 25. Nc2 {[%clk 0:00:33]} 25... d3
{[%clk 0:00:09.4]} 26. exd3 {[%clk 0:00:30.7]} 26... Bxd3 {[%clk 0:00:06.6]} 27.
Ne3 {[%clk 0:00:25.6]} 27... Qh3+ {[%clk 0:00:06]} 28. Kf2 {[%clk 0:00:13.4]}
28... Rf7 {[%clk 0:00:06.1]} 29. Ng2 {[%clk 0:00:11.4]} 29... Rdf8 {[%clk
0:00:05]} 30. Qxd3 {[%clk 0:00:10.5]} 30... Nxf3 {[%clk 0:00:05.1]} 31. Nxf3
{[%clk 0:00:10.8]} 31... Rxf3+ {[%clk 0:00:05.2]} 32. Qxf3 {[%clk 0:00:11.1]}
32... Rxf3+ {[%clk 0:00:05.7]} 33. Kxf3 {[%clk 0:00:12]} 33... Qf5+ {[%clk
0:00:05.9]} 34. Nf4 {[%clk 0:00:12.1]} 34... Ng6 {[%clk 0:00:05.9]} 35. Re8+
{[%clk 0:00:11.5]} 35... Kh7 {[%clk 0:00:05.7]} 36. Rce1 {[%clk 0:00:11.8]}
36... Nxf4 {[%clk 0:00:05.3]} 37. gxf4 {[%clk 0:00:12]} 37... Qd3+ {[%clk
0:00:05.5]} 38. R1e3 {[%clk 0:00:11.6]} 38... Qxc4 {[%clk 0:00:06.4]} 39. R8e4
{[%clk 0:00:12]} 39... Qd5 {[%clk 0:00:06.2]} 40. h3 {[%clk 0:00:12.5]} 40...
Qh5+ {[%clk 0:00:06.2]} 41. Kf2 {[%clk 0:00:12]} 41... Qf5 {[%clk 0:00:06.7]}
42. Ke2 {[%clk 0:00:12]} 42... Qb5+ {[%clk 0:00:06]} 43. Kd1 {[%clk 0:00:12.2]}
43... c5 {[%clk 0:00:05.9]} 44. bxc5 {[%clk 0:00:11.6]} 44... Qxc5 {[%clk
0:00:05.8]} 45. Ke2 {[%clk 0:00:11.7]} 45... b5 {[%clk 0:00:05.6]} 46. Re5
{[%clk 0:00:10.2]} 46... Qc2+ {[%clk 0:00:05.7]} 47. Kf3 {[%clk 0:00:10.1]}
47... Qd1+ {[%clk 0:00:06.3]} 48. Ke4 {[%clk 0:00:08.2]} 48... b4 {[%clk
0:00:06.7]} 49. Rb5 {[%clk 0:00:06.1]} 49... Qc2+ {[%clk 0:00:05.5]} 50. Rd3
{[%clk 0:00:05.5]} 50... Qc6+ {[%clk 0:00:05.1]} 51. Rdd5 {[%clk 0:00:02.8]}
51... Qc4+ {[%clk 0:00:05.3]} 52. Ke5 {[%clk 0:00:02.6]} 52... b3 {[%clk
0:00:04.7]} 53. Rb7 {[%clk 0:00:02]} 53... b2 {[%clk 0:00:04.3]} 54. Rdb5 {[%clk
0:00:02.1]} 54... Qc3+ {[%clk 0:00:03.8]} 55. Ke4 {[%clk 0:00:02.5]} 55... Qc2+
{[%clk 0:00:03.7]} 56. Ke5 {[%clk 0:00:02.5]} 56... Qc3+ {[%clk 0:00:03.8]} 57.
Ke4 {[%clk 0:00:02.6]} 57... Qc2+ {[%clk 0:00:04.2]} 58. Ke5 {[%clk 0:00:02.6]}
58... Qc3+ {[%clk 0:00:04.6]} 1/2-1/2

[Event "Late-Titled-Tuesday-Blitz-January-30-2024"]
[Site "Chess.com"]
[Date "2024.01.30"]
[Round "8"]
[White "Elsa167"]
[Black "Msb2"]
[Result "1-0"]
[WhiteElo "2904"]
[BlackElo "2995"]
[TimeControl "180+1"]
[EndTime "15:28:40 PST"]
[Termination "Elsa167 won by resignation"]

1. Nf3 {[%clk 0:03:00.1]} 1... d5 {[%clk 0:03:00.2]} 2. g3 {[%clk 0:03:00.3]}
2... e6 {[%clk 0:03:00.5]} 3. Bg2 {[%clk 0:03:00.4]} 3... Nf6 {[%clk 0:03:01.2]}
4. O-O {[%clk 0:03:00.9]} 4... Bd6 {[%clk 0:03:01.9]} 5. b3 {[%clk 0:02:58.3]}
5... O-O {[%clk 0:03:01.7]} 6. Bb2 {[%clk 0:02:58.8]} 6... Nc6 {[%clk
0:03:01.3]} 7. c4 {[%clk 0:02:53.9]} 7... d4 {[%clk 0:03:01]} 8. d3 {[%clk
0:02:29.5]} 8... e5 {[%clk 0:02:58]} 9. Na3 {[%clk 0:02:20.5]} 9... Re8 {[%clk
0:02:53.1]} 10. Nd2 {[%clk 0:02:20.2]} 10... Bf5 {[%clk 0:02:48.9]} 11. Nc2
{[%clk 0:02:19.6]} 11... a5 {[%clk 0:02:48.9]} 12. a3 {[%clk 0:02:18.3]} 12...
Bc5 {[%clk 0:02:38.5]} 13. Ne4 {[%clk 0:01:57.1]} 13... Nxe4 {[%clk 0:02:36.2]}
14. dxe4 {[%clk 0:01:56.8]} 14... Be6 {[%clk 0:02:36.2]} 15. Ne1 {[%clk
0:01:55]} 15... Bf8 {[%clk 0:02:29.3]} 16. Qc2 {[%clk 0:01:53.2]} 16... h5
{[%clk 0:02:05]} 17. h4 {[%clk 0:01:51.9]} 17... Bg4 {[%clk 0:01:46.9]} 18. Nd3
{[%clk 0:01:51.4]} 18... f6 {[%clk 0:01:44.8]} 19. c5 {[%clk 0:01:45.6]} 19...
Qd7 {[%clk 0:01:44.5]} 20. b4 {[%clk 0:01:44.8]} 20... axb4 {[%clk 0:01:41.6]}
21. axb4 {[%clk 0:01:45.7]} 21... Kh7 {[%clk 0:01:36]} 22. Bf3 {[%clk
0:01:35.6]} 22... Ne7 {[%clk 0:01:33.4]} 23. Bxg4 {[%clk 0:01:27.8]} 23... Qxg4
{[%clk 0:01:34.3]} 24. Rxa8 {[%clk 0:01:11.9]} 24... Rxa8 {[%clk 0:01:35.2]} 25.
Ne1 {[%clk 0:01:12.3]} 25... Ng6 {[%clk 0:01:31.7]} 26. Kh2 {[%clk 0:01:06]}
26... Ra2 {[%clk 0:01:22.5]} 27. f3 {[%clk 0:00:57.8]} 27... Qe6 {[%clk
0:01:09.3]} 28. Nd3 {[%clk 0:00:58.2]} 28... f5 {[%clk 0:00:58.8]} 29. Nc1
{[%clk 0:00:52.5]} 29... Rxb2 {[%clk 0:00:51.5]} 30. Qxb2 {[%clk 0:00:52.9]}
30... f4 {[%clk 0:00:49.5]} 31. Nd3 {[%clk 0:00:45.8]} 31... Qf6 {[%clk
0:00:46.9]} 32. Rh1 {[%clk 0:00:41.8]} 32... Be7 {[%clk 0:00:43.8]} 33. Qd2
{[%clk 0:00:29.6]} 33... fxg3+ {[%clk 0:00:43.5]} 34. Kxg3 {[%clk 0:00:30.5]}
34... Nxh4 {[%clk 0:00:43.7]} 35. Kf2 {[%clk 0:00:20.2]} 35... g5 {[%clk
0:00:42.4]} 36. Ke1 {[%clk 0:00:09.6]} 36... Qe6 {[%clk 0:00:31.3]} 37. Kd1
{[%clk 0:00:08.3]} 37... Kg6 {[%clk 0:00:25.9]} 38. Kc1 {[%clk 0:00:08.8]} 38...
g4 {[%clk 0:00:23.5]} 39. f4 {[%clk 0:00:08.9]} 39... Qa6 {[%clk 0:00:15.6]} 40.
Nxe5+ {[%clk 0:00:08.8]} 40... Kg7 {[%clk 0:00:16.2]} 41. Kb2 {[%clk 0:00:08.6]}
41... Bf6 {[%clk 0:00:14.4]} 42. Rxh4 {[%clk 0:00:06.2]} 42... Bxh4 {[%clk
0:00:14.4]} 43. Qxd4 {[%clk 0:00:06.8]} 43... Qxe2+ {[%clk 0:00:14.8]} 44. Kb3
{[%clk 0:00:07.4]} 44... Qb5 {[%clk 0:00:04.4]} 45. Qd5 {[%clk 0:00:06.2]} 45...
Qe8 {[%clk 0:00:03.9]} 46. Qxb7 {[%clk 0:00:04.2]} 46... Qe6+ {[%clk 0:00:04.1]}
47. Kc2 {[%clk 0:00:02.9]} 47... Qe7 {[%clk 0:00:04.6]} 48. Qd5 {[%clk
0:00:02.4]} 48... Bf6 {[%clk 0:00:04.9]} 49. Nd3 {[%clk 0:00:01.7]} 49... Qe8
{[%clk 0:00:05.1]} 50. e5 {[%clk 0:00:02.3]} 50... Be7 {[%clk 0:00:05.6]} 51. f5
{[%clk 0:00:02.3]} 51... g3 {[%clk 0:00:06]} 52. f6+ {[%clk 0:00:02.9]} 52...
Bxf6 {[%clk 0:00:06.1]} 53. exf6+ {[%clk 0:00:03.8]} 53... Kxf6 {[%clk 0:00:07]}
54. Qd4+ {[%clk 0:00:03.7]} 54... Kg5 {[%clk 0:00:07.2]} 55. Qf4+ {[%clk
0:00:04]} 55... Kg6 {[%clk 0:00:06.8]} 56. Qxg3+ {[%clk 0:00:04.6]} 56... Kh7
{[%clk 0:00:07.7]} 57. Qe5 {[%clk 0:00:04.4]} 57... Qg6 {[%clk 0:00:07.5]} 58.
Qxc7+ {[%clk 0:00:04.8]} 58... Kh6 {[%clk 0:00:08.1]} 59. Qf4+ {[%clk
0:00:05.1]} 59... Kh7 {[%clk 0:00:08.7]} 60. b5 {[%clk 0:00:05.5]} 60... Qe6
{[%clk 0:00:07.5]} 61. c6 {[%clk 0:00:03.7]} 61... Qa2+ {[%clk 0:00:07.5]} 62.
Nb2 {[%clk 0:00:03.7]} 62... Qd5 {[%clk 0:00:07.9]} 63. Qc4 {[%clk 0:00:03.4]}
63... Qg2+ {[%clk 0:00:07.3]} 64. Kb3 {[%clk 0:00:04.1]} 64... h4 {[%clk
0:00:06.5]} 65. Qxh4+ {[%clk 0:00:04.1]} 1-0

[Event "Late-Titled-Tuesday-Blitz-January-30-2024"]
[Site "Chess.com"]
[Date "2024.01.30"]
[Round "8"]
[White "carloseduar100"]
[Black "subham777"]
[Result "0-1"]
[WhiteElo "2319"]
[BlackElo "2492"]
[TimeControl "180+1"]
[EndTime "15:28:44 PST"]
[Termination "subham777 won by checkmate"]

1. d4 {[%clk 0:03:00.4]} 1... d5 {[%clk 0:02:58.9]} 2. c3 {[%clk 0:03:00.5]}
2... Nf6 {[%clk 0:02:58.6]} 3. Bg5 {[%clk 0:03:01]} 3... Ne4 {[%clk 0:02:58.5]}
4. h4 {[%clk 0:03:01]} 4... h6 {[%clk 0:02:57.8]} 5. Bf4 {[%clk 0:03:00.9]} 5...
e6 {[%clk 0:02:56.4]} 6. Nd2 {[%clk 0:03:01.2]} 6... Bd6 {[%clk 0:02:54.1]} 7.
Bxd6 {[%clk 0:02:59.3]} 7... Qxd6 {[%clk 0:02:52.5]} 8. Nxe4 {[%clk 0:02:59.7]}
8... dxe4 {[%clk 0:02:53.1]} 9. e3 {[%clk 0:03:00]} 9... O-O {[%clk 0:02:51.2]}
10. Ne2 {[%clk 0:02:59.8]} 10... f5 {[%clk 0:02:51.2]} 11. Qb3 {[%clk
0:02:58.9]} 11... Nd7 {[%clk 0:02:48.6]} 12. g3 {[%clk 0:02:58.8]} 12... Nf6
{[%clk 0:02:47.4]} 13. Nf4 {[%clk 0:02:57.4]} 13... Nd5 {[%clk 0:02:46.7]} 14.
Bc4 {[%clk 0:02:55.3]} 14... c6 {[%clk 0:02:46]} 15. a4 {[%clk 0:02:44.6]} 15...
Bd7 {[%clk 0:02:37.2]} 16. a5 {[%clk 0:02:40.8]} 16... b5 {[%clk 0:02:32.6]} 17.
axb6 {[%clk 0:02:40.9]} 17... axb6 {[%clk 0:02:29.6]} 18. Kd2 {[%clk 0:02:41.4]}
18... Nxf4 {[%clk 0:02:26]} 19. gxf4 {[%clk 0:02:41.3]} 19... b5 {[%clk
0:02:25.7]} 20. Be2 {[%clk 0:02:38.1]} 20... c5 {[%clk 0:02:18.3]} 21. Rhg1
{[%clk 0:02:14.1]} 21... b4 {[%clk 0:02:05.3]} 22. Bc4 {[%clk 0:02:06.7]} 22...
Rab8 {[%clk 0:01:59.7]} 23. Ra6 {[%clk 0:02:03]} 23... Rb6 {[%clk 0:01:35.7]}
24. Rga1 {[%clk 0:01:56.7]} 24... bxc3+ {[%clk 0:01:24.4]} 25. bxc3 {[%clk
0:01:52]} 25... Rfb8 {[%clk 0:01:12.3]} 26. Rxb6 {[%clk 0:01:45.2]} 26... Rxb6
{[%clk 0:01:11.7]} 27. Ra8+ {[%clk 0:01:45.7]} 27... Kh7 {[%clk 0:01:08.2]} 28.
Qa3 {[%clk 0:01:44.4]} 28... cxd4 {[%clk 0:01:02.2]} 29. cxd4 {[%clk 0:01:40.2]}
29... Qc6 {[%clk 0:00:36.5]} 30. Be2 {[%clk 0:01:03.6]} 30... Rb1 {[%clk
0:00:24.8]} 31. h5 {[%clk 0:00:55.5]} 31... Qb6 {[%clk 0:00:19]} 32. Bd1 {[%clk
0:00:44.7]} 32... Qb5 {[%clk 0:00:11.7]} 33. Ra7 {[%clk 0:00:35.3]} 33... Rb2+
{[%clk 0:00:08.9]} 34. Bc2 {[%clk 0:00:32]} 34... Be8 {[%clk 0:00:06.1]} 35. Kc1
{[%clk 0:00:22.4]} 35... Bxh5 {[%clk 0:00:04.2]} 36. Qxb2 {[%clk 0:00:13.7]}
36... Qf1+ {[%clk 0:00:04.2]} 37. Kd2 {[%clk 0:00:14.3]} 37... Qxf2+ {[%clk
0:00:04.7]} 38. Kc3 {[%clk 0:00:14.9]} 38... Qxe3+ {[%clk 0:00:05.2]} 39. Kb4
{[%clk 0:00:15.3]} 39... Qd2+ {[%clk 0:00:05]} 40. Ka3 {[%clk 0:00:15.1]} 40...
Qxf4 {[%clk 0:00:02.8]} 41. d5 {[%clk 0:00:15.2]} 41... Qe3+ {[%clk 0:00:02.8]}
42. Bb3 {[%clk 0:00:14.3]} 42... Qxa7+ {[%clk 0:00:03.7]} 43. Ba4 {[%clk
0:00:13.9]} 43... Be8 {[%clk 0:00:02.9]} 44. Qb4 {[%clk 0:00:12.3]} 44... Qxa4+
{[%clk 0:00:02.9]} 45. Qxa4 {[%clk 0:00:13.2]} 45... Bxa4 {[%clk 0:00:03.2]} 46.
Kxa4 {[%clk 0:00:14.1]} 46... exd5 {[%clk 0:00:03.6]} 47. Kb4 {[%clk 0:00:14.1]}
47... g5 {[%clk 0:00:04.2]} 48. Kc3 {[%clk 0:00:14.6]} 48... Kg6 {[%clk
0:00:05.1]} 49. Kd4 {[%clk 0:00:15.3]} 49... Kf6 {[%clk 0:00:06]} 50. Ke3 {[%clk
0:00:15.9]} 50... Ke5 {[%clk 0:00:06.2]} 51. Kd2 {[%clk 0:00:16.6]} 51... d4
{[%clk 0:00:07.1]} 52. Ke2 {[%clk 0:00:17]} 52... f4 {[%clk 0:00:08]} 53. Kd2
{[%clk 0:00:17.6]} 53... Kf5 {[%clk 0:00:08.9]} 54. Ke2 {[%clk 0:00:18.5]} 54...
g4 {[%clk 0:00:09.8]} 55. Kf2 {[%clk 0:00:19.3]} 55... h5 {[%clk 0:00:10.7]} 56.
Kg1 {[%clk 0:00:20]} 56... h4 {[%clk 0:00:11.6]} 57. Kf2 {[%clk 0:00:20.6]}
57... Ke5 {[%clk 0:00:12.5]} 58. Kg2 {[%clk 0:00:21.2]} 58... Kd5 {[%clk
0:00:13.4]} 59. Kf2 {[%clk 0:00:22.1]} 59... Kc4 {[%clk 0:00:14.3]} 60. Ke2
{[%clk 0:00:23]} 60... d3+ {[%clk 0:00:14.4]} 61. Kd2 {[%clk 0:00:23.9]} 61...
Kd4 {[%clk 0:00:14.9]} 62. Ke1 {[%clk 0:00:24.2]} 62... h3 {[%clk 0:00:15.4]}
63. Kf2 {[%clk 0:00:24.8]} 63... g3+ {[%clk 0:00:15.8]} 64. Ke1 {[%clk
0:00:24.7]} 64... e3 {[%clk 0:00:15.2]} 65. Kd1 {[%clk 0:00:24.9]} 65... f3
{[%clk 0:00:15.4]} 66. Kc1 {[%clk 0:00:25.3]} 66... h2 {[%clk 0:00:15.7]} 67.
Kb2 {[%clk 0:00:25.9]} 67... Kc4 {[%clk 0:00:14.3]} 68. Ka3 {[%clk 0:00:26.2]}
68... h1=Q {[%clk 0:00:14.3]} 69. Kb2 {[%clk 0:00:27]} 69... Kb4 {[%clk
0:00:12.4]} 70. Ka2 {[%clk 0:00:27.1]} 70... Qg2+ {[%clk 0:00:12.9]} 71. Kb1
{[%clk 0:00:27.4]} 71... Qd2 {[%clk 0:00:11]} 72. Ka1 {[%clk 0:00:27.5]} 72...
g2 {[%clk 0:00:11.6]} 73. Kb1 {[%clk 0:00:28.1]} 73... g1=Q# {[%clk 0:00:11.8]}
0-1